[Event "Titled Tuesday Blitz July 25 Early 2023"]
[White "Tomaszewski, Kacper"]
[Black "Antonio, Rogelio Jr"]
[WhiteFideId "1127373"]
[BlackFideId "5200032"]
[WhiteElo "2463"]
[BlackElo "2688"]
[Result "1/2-1/2"]
[Round "5"]
[TimeControl "180+2"]
[Date "2023.07.25"]
[WhiteClock "0:01:07"]
[BlackClock "0:01:00"]
[Board "77"]

1. e4 {[%clk 0:03:00]}  c6 {[%clk 0:02:59]} 2. Nf3 {[%clk 0:02:58]}  d5 {[%clk 0:03:00]} 3. Nc3 {[%clk 0:02:58]}  Bg4 {[%clk 0:02:57]} 4. Be2 {[%clk 0:02:58]}  Nf6 {[%clk 0:02:54]} 5. e5 {[%clk 0:02:59]}  Nfd7 {[%clk 0:02:53]} 6. Ng5 {[%clk 0:02:59]}  Bxe2 {[%clk 0:02:44]} 7. Qxe2 {[%clk 0:03:00]}  e6 {[%clk 0:02:44]} 8. d4 {[%clk 0:02:59]}  Be7 {[%clk 0:02:39]} 9. Qh5 {[%clk 0:02:59]}  Bxg5 {[%clk 0:02:35]} 10. Bxg5 {[%clk 0:03:00]}  Qa5 {[%clk 0:02:27]} 11. O-O-O {[%clk 0:02:53]}  c5 {[%clk 0:02:27]} 12. Nxd5 {[%clk 0:02:53]}  Nc6 {[%clk 0:02:16]} 13. dxc5 {[%clk 0:02:28]}  Ndxe5 {[%clk 0:02:13]} 14. Nf6+ {[%clk 0:02:18]}  Kf8 {[%clk 0:01:54]} 15. Nd7+ {[%clk 0:02:08]}  Kg8 {[%clk 0:01:47]} 16. Nf6+ {[%clk 0:01:07]}  Kf8 {[%clk 0:01:22]} 17. Nd7+ {[%clk 0:01:07]}  Kg8 {[%clk 0:01:19]} 18. Nf6+ {[%clk 0:01:07]}  Kf8 {[%clk 0:01:00]} 1/2-1/2


[Site "https://www.chess.com"]

[Event "Titled Tuesday Blitz July 25 Early 2023"]
[White "Nagare Kaivalya Sandip"]
[Black "Attacker_2006"]
[WhiteFideId "25957929"]
[WhiteElo "2661"]
[BlackElo "2386"]
[Result "0-1"]
[Round "5"]
[TimeControl "180+2"]
[Date "2023.07.25"]
[WhiteClock "0:00:29"]
[BlackClock "0:00:14"]
[Board "81"]

1. e4 {[%clk 0:03:00]}  c5 {[%clk 0:02:56]} 2. Nf3 {[%clk 0:03:01]}  d6 {[%clk 0:02:51]} 3. d4 {[%clk 0:03:01]}  cxd4 {[%clk 0:02:49]} 4. Nxd4 {[%clk 0:03:02]}  Nf6 {[%clk 0:02:49]} 5. Nc3 {[%clk 0:03:01]}  a6 {[%clk 0:02:49]} 6. Be3 {[%clk 0:03:01]}  e6 {[%clk 0:02:47]} 7. g4 {[%clk 0:02:55]}  e5 {[%clk 0:02:30]} 8. Nf5 {[%clk 0:02:51]}  g6 {[%clk 0:02:30]} 9. g5 {[%clk 0:02:40]}  gxf5 {[%clk 0:02:30]} 10. gxf6 {[%clk 0:02:40]}  f4 {[%clk 0:02:28]} 11. Bc1 {[%clk 0:02:40]}  Qxf6 {[%clk 0:02:28]} 12. Nd5 {[%clk 0:02:40]}  Qd8 {[%clk 0:02:28]} 13. Bc4 {[%clk 0:02:37]}  Be6 {[%clk 0:02:27]} 14. Bb3 {[%clk 0:02:29]}  Nc6 {[%clk 0:02:25]} 15. c3 {[%clk 0:02:28]}  h5 {[%clk 0:01:53]} 16. h3 {[%clk 0:02:24]}  Rc8 {[%clk 0:01:48]} 17. Qf3 {[%clk 0:02:23]}  Qh4 {[%clk 0:01:39]} 18. Bd2 {[%clk 0:02:19]}  b5 {[%clk 0:01:31]} 19. a4 {[%clk 0:02:17]}  Na5 {[%clk 0:01:30]} 20. Ba2 {[%clk 0:02:12]}  bxa4 {[%clk 0:01:19]} 21. Qe2 {[%clk 0:02:12]}  Nb3 {[%clk 0:01:10]} 22. Bxb3 {[%clk 0:02:05]}  axb3 {[%clk 0:01:11]} 23. Qxa6 {[%clk 0:02:02]}  f3 {[%clk 0:00:54]} 24. Be3 {[%clk 0:02:00]}  Be7 {[%clk 0:00:46]} 25. Qb5+ {[%clk 0:01:46]}  Bd7 {[%clk 0:00:45]} 26. Qb7 {[%clk 0:01:37]}  Rg8 {[%clk 0:00:22]} 27. Ra7 {[%clk 0:01:34]}  Rd8 {[%clk 0:00:16]} 28. Kd2 {[%clk 0:00:39]}  Rg6 {[%clk 0:00:16]} 29. Rha1 {[%clk 0:00:36]}  Kf8 {[%clk 0:00:15]} 30. Ra8 {[%clk 0:00:34]}  Qxe4 {[%clk 0:00:12]} 31. Rxd8+ {[%clk 0:00:32]}  Bxd8 {[%clk 0:00:13]} 32. Ra8 {[%clk 0:00:31]}  Qc2+ {[%clk 0:00:14]} 33. Ke1 {[%clk 0:00:29]}  Rg1# {[%clk 0:00:14]} 0-1


[Site "https://www.chess.com"]

[Event "Titled Tuesday Blitz July 25 Early 2023"]
[White "Arat, Ufuk Sezen"]
[Black "Gavarrete, Nahun"]
[WhiteFideId "6309089"]
[BlackFideId "8400709"]
[WhiteElo "2624"]
[BlackElo "2358"]
[Result "1-0"]
[Round "5"]
[TimeControl "180+2"]
[Date "2023.07.25"]
[WhiteClock "0:02:31"]
[BlackClock "0:01:01"]
[Board "82"]

1. e4 {[%clk 0:03:00]}  e6 {[%clk 0:02:58]} 2. d4 {[%clk 0:03:01]}  d5 {[%clk 0:02:58]} 3. Nc3 {[%clk 0:03:01]}  Nf6 {[%clk 0:02:43]} 4. Bg5 {[%clk 0:03:01]}  Be7 {[%clk 0:02:38]} 5. e5 {[%clk 0:03:02]}  Nfd7 {[%clk 0:02:38]} 6. Bxe7 {[%clk 0:03:02]}  Qxe7 {[%clk 0:02:39]} 7. f4 {[%clk 0:03:03]}  a6 {[%clk 0:02:35]} 8. Nf3 {[%clk 0:03:04]}  c5 {[%clk 0:02:34]} 9. dxc5 {[%clk 0:03:04]}  Nc6 {[%clk 0:02:33]} 10. Qd2 {[%clk 0:03:05]}  Nxc5 {[%clk 0:02:30]} 11. Bd3 {[%clk 0:03:06]}  b5 {[%clk 0:02:28]} 12. Ne2 {[%clk 0:03:06]}  Bb7 {[%clk 0:02:26]} 13. c3 {[%clk 0:03:06]}  Nxd3+ {[%clk 0:02:01]} 14. Qxd3 {[%clk 0:03:04]}  O-O {[%clk 0:01:58]} 15. Ned4 {[%clk 0:02:54]}  Nxd4 {[%clk 0:01:49]} 16. Nxd4 {[%clk 0:02:53]}  b4 {[%clk 0:01:48]} 17. O-O {[%clk 0:02:47]}  a5 {[%clk 0:01:43]} 18. f5 {[%clk 0:02:34]}  exf5 {[%clk 0:01:08]} 19. Nxf5 {[%clk 0:02:31]}  Qxe5 {[%clk 0:01:08]} 20. Rae1 {[%clk 0:02:31]}  Qf6 {[%clk 0:01:01]} 21. Ne7+ {[%clk 0:02:31]} 1-0


[Site "https://www.chess.com"]

[Event "Titled Tuesday Blitz July 25 Early 2023"]
[White "Harsh Suresh"]
[Black "Taboas Rodriguez, Daniel"]
[WhiteFideId "45018464"]
[BlackFideId "2208466"]
[WhiteElo "2834"]
[BlackElo "2493"]
[Result "1-0"]
[Round "5"]
[TimeControl "180+2"]
[Date "2023.07.25"]
[WhiteClock "0:00:06"]
[BlackClock "0:00:02"]
[Board "88"]

1. d4 {[%clk 0:03:00]}  Nf6 {[%clk 0:03:00]} 2. c4 {[%clk 0:03:00]}  g6 {[%clk 0:03:00]} 3. g3 {[%clk 0:02:55]}  Bg7 {[%clk 0:03:00]} 4. Bg2 {[%clk 0:02:55]}  O-O {[%clk 0:03:01]} 5. Nf3 {[%clk 0:02:55]}  b6 {[%clk 0:03:01]} 6. O-O {[%clk 0:02:50]}  Bb7 {[%clk 0:03:02]} 7. Nc3 {[%clk 0:02:51]}  Ne4 {[%clk 0:03:02]} 8. Qd3 {[%clk 0:02:47]}  Nxc3 {[%clk 0:03:01]} 9. bxc3 {[%clk 0:02:47]}  Nc6 {[%clk 0:03:01]} 10. e4 {[%clk 0:02:44]}  e5 {[%clk 0:02:59]} 11. Ba3 {[%clk 0:02:40]}  d6 {[%clk 0:02:57]} 12. dxe5 {[%clk 0:02:19]}  Nxe5 {[%clk 0:02:57]} 13. Nxe5 {[%clk 0:02:19]}  Bxe5 {[%clk 0:02:57]} 14. f4 {[%clk 0:02:19]}  Bg7 {[%clk 0:02:58]} 15. Rad1 {[%clk 0:02:12]}  Re8 {[%clk 0:02:55]} 16. Rfe1 {[%clk 0:02:11]}  Qd7 {[%clk 0:02:44]} 17. Bc1 {[%clk 0:02:08]}  Qa4 {[%clk 0:02:39]} 18. Rd2 {[%clk 0:01:59]}  Ba6 {[%clk 0:02:22]} 19. Bf1 {[%clk 0:01:59]}  Qa5 {[%clk 0:02:16]} 20. Rc2 {[%clk 0:01:54]}  f5 {[%clk 0:02:06]} 21. Bb2 {[%clk 0:01:35]}  Qc5+ {[%clk 0:01:34]} 22. Kh1 {[%clk 0:01:30]}  Qc6 {[%clk 0:01:28]} 23. Kg1 {[%clk 0:01:01]}  fxe4 {[%clk 0:01:23]} 24. Qe2 {[%clk 0:01:00]}  Qc5+ {[%clk 0:01:19]} 25. Qe3 {[%clk 0:00:45]}  Qc6 {[%clk 0:00:46]} 26. Qe2 {[%clk 0:00:23]}  Re7 {[%clk 0:00:38]} 27. Bc1 {[%clk 0:00:21]}  Rae8 {[%clk 0:00:30]} 28. Be3 {[%clk 0:00:21]}  h5 {[%clk 0:00:27]} 29. Bd4 {[%clk 0:00:19]}  e3 {[%clk 0:00:23]} 30. Qd3 {[%clk 0:00:14]}  Bb7 {[%clk 0:00:19]} 31. Bg2 {[%clk 0:00:13]}  Re4 {[%clk 0:00:14]} 32. Bxg7 {[%clk 0:00:01]}  Kxg7 {[%clk 0:00:14]} 33. Rce2 {[%clk 0:00:02]}  Kh6 {[%clk 0:00:10]} 34. Bxe4 {[%clk 0:00:02]}  Rxe4 {[%clk 0:00:10]} 35. Qd5 {[%clk 0:00:02]}  Qxd5 {[%clk 0:00:08]} 36. cxd5 {[%clk 0:00:03]}  Bxd5 {[%clk 0:00:08]} 37. Rxe3 {[%clk 0:00:04]}  Rxe3 {[%clk 0:00:09]} 38. Rxe3 {[%clk 0:00:05]}  Bxa2 {[%clk 0:00:10]} 39. Re7 {[%clk 0:00:05]}  c5 {[%clk 0:00:08]} 40. Rxa7 {[%clk 0:00:06]}  Bc4 {[%clk 0:00:08]} 41. Rb7 {[%clk 0:00:05]}  b5 {[%clk 0:00:08]} 42. Kf2 {[%clk 0:00:05]}  d5 {[%clk 0:00:08]} 43. Ke3 {[%clk 0:00:06]}  h4 {[%clk 0:00:06]} 44. g4 {[%clk 0:00:06]}  h3 {[%clk 0:00:07]} 45. Kf3 {[%clk 0:00:04]}  Bd3 {[%clk 0:00:03]} 46. g5+ {[%clk 0:00:05]}  Kh5 {[%clk 0:00:02]} 47. Rh7# {[%clk 0:00:06]} 1-0


[Site "https://www.chess.com"]

[Event "Titled Tuesday Blitz July 25 Early 2023"]
[White "Perske, Thore"]
[Black "Gharibyan, Mamikon"]
[WhiteFideId "12902195"]
[BlackFideId "13308300"]
[WhiteElo "2487"]
[BlackElo "2794"]
[Result "0-1"]
[Round "5"]
[TimeControl "180+2"]
[Date "2023.07.25"]
[WhiteClock "0:00:47"]
[BlackClock "0:00:54"]
[Board "89"]

1. d4 {[%clk 0:02:57]}  Nf6 {[%clk 0:02:59]} 2. g3 {[%clk 0:02:55]}  c5 {[%clk 0:02:58]} 3. dxc5 {[%clk 0:02:56]}  Qa5+ {[%clk 0:02:58]} 4. Nc3 {[%clk 0:02:56]}  Qxc5 {[%clk 0:02:47]} 5. Bg2 {[%clk 0:02:56]}  g6 {[%clk 0:02:47]} 6. e4 {[%clk 0:02:56]}  Bg7 {[%clk 0:02:47]} 7. Nge2 {[%clk 0:02:56]}  O-O {[%clk 0:02:47]} 8. h3 {[%clk 0:02:57]}  d6 {[%clk 0:02:47]} 9. O-O {[%clk 0:02:57]}  Nc6 {[%clk 0:02:47]} 10. Be3 {[%clk 0:02:58]}  Qa5 {[%clk 0:02:47]} 11. Nd5 {[%clk 0:02:55]}  Nxd5 {[%clk 0:02:47]} 12. exd5 {[%clk 0:02:56]}  Ne5 {[%clk 0:02:47]} 13. b3 {[%clk 0:02:51]}  b5 {[%clk 0:02:37]} 14. Nd4 {[%clk 0:02:48]}  Bb7 {[%clk 0:02:36]} 15. Nc6 {[%clk 0:02:33]}  Bxc6 {[%clk 0:02:33]} 16. dxc6 {[%clk 0:02:34]}  Rac8 {[%clk 0:02:28]} 17. Bd4 {[%clk 0:02:08]}  Nxc6 {[%clk 0:02:27]} 18. Bxg7 {[%clk 0:02:09]}  Kxg7 {[%clk 0:02:27]} 19. Re1 {[%clk 0:02:10]}  Rfe8 {[%clk 0:02:19]} 20. c4 {[%clk 0:01:54]}  bxc4 {[%clk 0:02:17]} 21. bxc4 {[%clk 0:01:55]}  Ne5 {[%clk 0:02:16]} 22. Rc1 {[%clk 0:01:41]}  Rxc4 {[%clk 0:02:14]} 23. Rxc4 {[%clk 0:01:36]}  Nxc4 {[%clk 0:02:15]} 24. Qd4+ {[%clk 0:01:36]}  Ne5 {[%clk 0:02:15]} 25. Rc1 {[%clk 0:01:30]}  Qb6 {[%clk 0:02:05]} 26. Qc3 {[%clk 0:01:22]}  Rb8 {[%clk 0:01:47]} 27. Bd5 {[%clk 0:01:13]}  e6 {[%clk 0:01:46]} 28. Bb3 {[%clk 0:01:13]}  Kg8 {[%clk 0:01:41]} 29. Qc7 {[%clk 0:01:11]}  Nd3 {[%clk 0:01:36]} 30. Qxb6 {[%clk 0:01:10]}  Rxb6 {[%clk 0:01:32]} 31. Rc7 {[%clk 0:01:11]}  a5 {[%clk 0:01:28]} 32. Rc8+ {[%clk 0:01:11]}  Kg7 {[%clk 0:01:27]} 33. Ra8 {[%clk 0:01:12]}  Nc5 {[%clk 0:01:27]} 34. Bc4 {[%clk 0:01:07]}  Rb4 {[%clk 0:01:22]} 35. Bf1 {[%clk 0:01:02]}  a4 {[%clk 0:01:12]} 36. Ra7 {[%clk 0:01:03]}  d5 {[%clk 0:01:10]} 37. h4 {[%clk 0:01:02]}  h5 {[%clk 0:01:10]} 38. Bh3 {[%clk 0:01:00]}  Kf6 {[%clk 0:01:08]} 39. Rc7 {[%clk 0:00:59]}  Ne4 {[%clk 0:01:08]} 40. Bg2 {[%clk 0:00:54]}  Rb1+ {[%clk 0:01:08]} 41. Kh2 {[%clk 0:00:54]}  Nxf2 {[%clk 0:01:08]} 42. Ra7 {[%clk 0:00:54]}  Ng4+ {[%clk 0:01:05]} 43. Kh3 {[%clk 0:00:55]}  Rb4 {[%clk 0:01:03]} 44. a3 {[%clk 0:00:54]}  Nf2+ {[%clk 0:01:01]} 45. Kh2 {[%clk 0:00:54]}  Ng4+ {[%clk 0:01:01]} 46. Kh3 {[%clk 0:00:55]}  Rc4 {[%clk 0:01:01]} 47. Bf1 {[%clk 0:00:54]}  Rc2 {[%clk 0:01:00]} 48. Bg2 {[%clk 0:00:54]}  d4 {[%clk 0:00:56]} 49. Rxa4 {[%clk 0:00:53]}  d3 {[%clk 0:00:56]} 50. Rd4 {[%clk 0:00:53]}  d2 {[%clk 0:00:57]} 51. Bf3 {[%clk 0:00:52]}  d1=Q {[%clk 0:00:56]} 52. Bxd1 {[%clk 0:00:47]}  Rh2# {[%clk 0:00:54]} 0-1


[Site "https://www.chess.com"]

[Event "Titled Tuesday Blitz July 25 Early 2023"]
[White "MateoReyes"]
[Black "Prohaszka, Peter"]
[BlackFideId "726265"]
[WhiteElo "2480"]
[BlackElo "2739"]
[Result "0-1"]
[Round "5"]
[TimeControl "180+2"]
[Date "2023.07.25"]
[WhiteClock "0:00:08"]
[BlackClock "0:00:09"]
[Board "92"]

1. Nf3 {[%clk 0:03:00]}  d5 {[%clk 0:02:56]} 2. d4 {[%clk 0:03:00]}  Nf6 {[%clk 0:02:55]} 3. c4 {[%clk 0:02:59]}  e6 {[%clk 0:02:54]} 4. Nc3 {[%clk 0:02:59]}  Bb4 {[%clk 0:02:50]} 5. a3 {[%clk 0:02:56]}  Bxc3+ {[%clk 0:02:50]} 6. bxc3 {[%clk 0:02:55]}  dxc4 {[%clk 0:02:47]} 7. Bg5 {[%clk 0:02:52]}  Nbd7 {[%clk 0:02:23]} 8. e3 {[%clk 0:02:47]}  b5 {[%clk 0:02:19]} 9. a4 {[%clk 0:02:43]}  c6 {[%clk 0:02:18]} 10. Qb1 {[%clk 0:02:34]}  a6 {[%clk 0:02:14]} 11. g3 {[%clk 0:02:28]}  h6 {[%clk 0:02:13]} 12. Bxf6 {[%clk 0:02:28]}  Qxf6 {[%clk 0:02:06]} 13. Bg2 {[%clk 0:02:27]}  Rb8 {[%clk 0:02:07]} 14. O-O {[%clk 0:02:23]}  O-O {[%clk 0:02:07]} 15. Nd2 {[%clk 0:02:14]}  e5 {[%clk 0:02:01]} 16. Ne4 {[%clk 0:02:13]}  Qe7 {[%clk 0:02:01]} 17. Re1 {[%clk 0:01:57]}  f5 {[%clk 0:01:59]} 18. Nd2 {[%clk 0:01:54]}  Bb7 {[%clk 0:01:50]} 19. axb5 {[%clk 0:01:52]}  axb5 {[%clk 0:01:42]} 20. Ra7 {[%clk 0:01:50]}  e4 {[%clk 0:01:27]} 21. Nxc4 {[%clk 0:01:45]}  bxc4 {[%clk 0:01:15]} 22. Rxb7 {[%clk 0:01:44]}  Qd6 {[%clk 0:01:15]} 23. Bf1 {[%clk 0:01:29]}  Kh7 {[%clk 0:01:01]} 24. Bxc4 {[%clk 0:01:23]}  Qa3 {[%clk 0:01:00]} 25. Qb3 {[%clk 0:01:05]}  Qxb3 {[%clk 0:00:55]} 26. Rxb3 {[%clk 0:01:04]}  Rxb3 {[%clk 0:00:53]} 27. Bxb3 {[%clk 0:01:03]}  Kg6 {[%clk 0:00:53]} 28. Ra1 {[%clk 0:01:00]}  Rb8 {[%clk 0:00:52]} 29. Be6 {[%clk 0:01:00]}  Nf6 {[%clk 0:00:33]} 30. h3 {[%clk 0:00:54]}  Re8 {[%clk 0:00:14]} 31. Bc4 {[%clk 0:00:49]}  h5 {[%clk 0:00:14]} 32. Ra6 {[%clk 0:00:46]}  Rc8 {[%clk 0:00:13]} 33. Ra7 {[%clk 0:00:45]}  h4 {[%clk 0:00:07]} 34. Kg2 {[%clk 0:00:39]}  hxg3 {[%clk 0:00:07]} 35. fxg3 {[%clk 0:00:39]}  Rb8 {[%clk 0:00:07]} 36. Rc7 {[%clk 0:00:30]}  Rb2+ {[%clk 0:00:07]} 37. Kf1 {[%clk 0:00:29]}  Nh5 {[%clk 0:00:07]} 38. g4 {[%clk 0:00:27]}  Ng3+ {[%clk 0:00:07]} 39. Kg1 {[%clk 0:00:24]}  f4 {[%clk 0:00:07]} 40. exf4 {[%clk 0:00:22]}  e3 {[%clk 0:00:07]} 41. f5+ {[%clk 0:00:22]}  Kg5 {[%clk 0:00:07]} 42. Rxg7+ {[%clk 0:00:21]}  Kf4 {[%clk 0:00:07]} 43. f6 {[%clk 0:00:19]}  Kf3 {[%clk 0:00:07]} 44. Bf1 {[%clk 0:00:15]}  Rb1 {[%clk 0:00:07]} 45. Kh2 {[%clk 0:00:09]}  Rxf1 {[%clk 0:00:08]} 46. g5 {[%clk 0:00:08]}  Rh1# {[%clk 0:00:09]} 0-1


[Site "https://www.chess.com"]

[Event "Titled Tuesday Blitz July 25 Early 2023"]
[White "Spichkin, Alexander"]
[Black "Djordjevic, Vuk"]
[WhiteFideId "4144074"]
[BlackFideId "902098"]
[WhiteElo "2479"]
[BlackElo "2736"]
[Result "0-1"]
[Round "5"]
[TimeControl "180+2"]
[Date "2023.07.25"]
[WhiteClock "0:00:44"]
[BlackClock "0:00:43"]
[Board "93"]

1. f4 {[%clk 0:03:00]}  Nf6 {[%clk 0:02:59]} 2. Nf3 {[%clk 0:03:00]}  d5 {[%clk 0:02:59]} 3. e3 {[%clk 0:03:00]}  c5 {[%clk 0:03:00]} 4. b3 {[%clk 0:02:59]}  e6 {[%clk 0:03:00]} 5. Bb2 {[%clk 0:02:59]}  Bd6 {[%clk 0:03:01]} 6. Bd3 {[%clk 0:02:59]}  Nc6 {[%clk 0:03:01]} 7. O-O {[%clk 0:03:00]}  Qc7 {[%clk 0:02:59]} 8. Bb5 {[%clk 0:03:00]}  Bd7 {[%clk 0:02:59]} 9. Bxc6 {[%clk 0:03:00]}  Bxc6 {[%clk 0:02:59]} 10. Ne5 {[%clk 0:02:59]}  O-O-O {[%clk 0:02:56]} 11. d3 {[%clk 0:02:57]}  Nd7 {[%clk 0:02:45]} 12. Nxf7 {[%clk 0:02:55]}  Nf6 {[%clk 0:02:43]} 13. Nxd6+ {[%clk 0:02:46]}  Qxd6 {[%clk 0:02:42]} 14. Nd2 {[%clk 0:02:46]}  h5 {[%clk 0:02:40]} 15. Nf3 {[%clk 0:02:46]}  Ng4 {[%clk 0:02:40]} 16. Qe2 {[%clk 0:02:45]}  Rhg8 {[%clk 0:02:36]} 17. Ne5 {[%clk 0:02:44]}  Nxe5 {[%clk 0:02:22]} 18. Bxe5 {[%clk 0:02:43]}  Qe7 {[%clk 0:02:22]} 19. Qxh5 {[%clk 0:02:44]}  Rdf8 {[%clk 0:02:21]} 20. Qg5 {[%clk 0:02:37]}  Qd7 {[%clk 0:02:20]} 21. d4 {[%clk 0:02:33]}  Rf5 {[%clk 0:02:18]} 22. Qg6 {[%clk 0:02:31]}  c4 {[%clk 0:02:15]} 23. e4 {[%clk 0:02:16]}  dxe4 {[%clk 0:02:10]} 24. bxc4 {[%clk 0:02:16]}  Qe7 {[%clk 0:02:05]} 25. d5 {[%clk 0:02:12]}  Bd7 {[%clk 0:02:03]} 26. d6 {[%clk 0:02:07]}  Qd8 {[%clk 0:02:02]} 27. c5 {[%clk 0:02:04]}  Qa5 {[%clk 0:02:01]} 28. Bd4 {[%clk 0:01:56]}  Qa4 {[%clk 0:01:58]} 29. c3 {[%clk 0:01:52]}  Qc4 {[%clk 0:01:52]} 30. Rae1 {[%clk 0:01:49]}  Bc6 {[%clk 0:01:43]} 31. Re3 {[%clk 0:01:47]}  Bb5 {[%clk 0:01:33]} 32. Rfe1 {[%clk 0:01:44]}  Rxf4 {[%clk 0:01:32]} 33. h3 {[%clk 0:01:31]}  Bc6 {[%clk 0:01:32]} 34. Qg3 {[%clk 0:01:19]}  g5 {[%clk 0:01:27]} 35. Be5 {[%clk 0:01:15]}  Rf5 {[%clk 0:01:23]} 36. Bd4 {[%clk 0:01:11]}  Qxa2 {[%clk 0:01:17]} 37. d7+ {[%clk 0:01:11]}  Kxd7 {[%clk 0:01:00]} 38. Qd6+ {[%clk 0:01:11]}  Ke8 {[%clk 0:01:01]} 39. Rxe4 {[%clk 0:00:53]}  Bxe4 {[%clk 0:00:44]} 40. Qb8+ {[%clk 0:00:52]}  Kf7 {[%clk 0:00:43]} 41. Qc7+ {[%clk 0:00:48]}  Kg6 {[%clk 0:00:43]} 42. Kh2 {[%clk 0:00:44]}  Qxg2# {[%clk 0:00:43]} 0-1


[Site "https://www.chess.com"]

[Event "Titled Tuesday Blitz July 25 Early 2023"]
[White "Goltsev, Dmitry"]
[Black "Papayan, Oleg"]
[WhiteFideId "24176710"]
[BlackFideId "4193911"]
[WhiteElo "2711"]
[BlackElo "2475"]
[Result "1-0"]
[Round "5"]
[TimeControl "180+2"]
[Date "2023.07.25"]
[WhiteClock "0:00:45"]
[BlackClock "0:00:16"]
[Board "94"]

1. e4 {[%clk 0:02:59]}  d5 {[%clk 0:02:58]} 2. exd5 {[%clk 0:02:59]}  Qxd5 {[%clk 0:02:59]} 3. Nf3 {[%clk 0:02:59]}  Qd8 {[%clk 0:02:55]} 4. Nc3 {[%clk 0:02:59]}  Bf5 {[%clk 0:02:55]} 5. d4 {[%clk 0:02:59]}  e6 {[%clk 0:02:55]} 6. Bc4 {[%clk 0:02:59]}  Be7 {[%clk 0:02:56]} 7. O-O {[%clk 0:02:59]}  Nf6 {[%clk 0:02:55]} 8. Ne5 {[%clk 0:02:59]}  Nbd7 {[%clk 0:02:54]} 9. Qf3 {[%clk 0:02:59]}  O-O {[%clk 0:02:13]} 10. Qxb7 {[%clk 0:02:55]}  Nxe5 {[%clk 0:01:59]} 11. dxe5 {[%clk 0:02:56]}  Ng4 {[%clk 0:01:59]} 12. Rd1 {[%clk 0:02:47]}  Qc8 {[%clk 0:01:59]} 13. Qxc8 {[%clk 0:02:46]}  Raxc8 {[%clk 0:01:57]} 14. Bf4 {[%clk 0:02:41]}  Bxc2 {[%clk 0:01:56]} 15. Rd2 {[%clk 0:02:37]}  Bg6 {[%clk 0:01:45]} 16. h3 {[%clk 0:02:36]}  Nh6 {[%clk 0:01:46]} 17. Be3 {[%clk 0:02:32]}  Nf5 {[%clk 0:01:19]} 18. Bf4 {[%clk 0:02:01]}  Rfd8 {[%clk 0:01:15]} 19. Rad1 {[%clk 0:02:00]}  c6 {[%clk 0:01:09]} 20. g4 {[%clk 0:01:52]}  Nh4 {[%clk 0:01:06]} 21. Be2 {[%clk 0:01:52]}  Rxd2 {[%clk 0:00:59]} 22. Rxd2 {[%clk 0:01:52]}  Rd8 {[%clk 0:01:00]} 23. Rxd8+ {[%clk 0:01:50]}  Bxd8 {[%clk 0:01:00]} 24. Be3 {[%clk 0:01:50]}  a5 {[%clk 0:00:54]} 25. f4 {[%clk 0:01:47]}  h5 {[%clk 0:00:36]} 26. Kf2 {[%clk 0:01:45]}  hxg4 {[%clk 0:00:36]} 27. hxg4 {[%clk 0:01:46]}  f6 {[%clk 0:00:37]} 28. exf6 {[%clk 0:01:36]}  gxf6 {[%clk 0:00:35]} 29. Kg3 {[%clk 0:01:35]}  f5 {[%clk 0:00:26]} 30. g5 {[%clk 0:01:34]}  e5 {[%clk 0:00:20]} 31. Kxh4 {[%clk 0:01:32]}  exf4 {[%clk 0:00:19]} 32. Bxf4 {[%clk 0:01:33]}  Kf7 {[%clk 0:00:19]} 33. Bc4+ {[%clk 0:01:32]}  Ke7 {[%clk 0:00:19]} 34. Be5 {[%clk 0:01:31]}  Bb6 {[%clk 0:00:19]} 35. Kg3 {[%clk 0:01:28]}  Be3 {[%clk 0:00:19]} 36. Bf4 {[%clk 0:01:29]}  Bd4 {[%clk 0:00:19]} 37. Nd1 {[%clk 0:01:11]}  Bh5 {[%clk 0:00:18]} 38. Ne3 {[%clk 0:01:09]}  Bxb2 {[%clk 0:00:17]} 39. Nxf5+ {[%clk 0:01:08]}  Kd7 {[%clk 0:00:17]} 40. Ne3 {[%clk 0:01:08]}  a4 {[%clk 0:00:14]} 41. Ng4 {[%clk 0:01:02]}  Ke7 {[%clk 0:00:11]} 42. Be5 {[%clk 0:00:59]}  Bc1 {[%clk 0:00:10]} 43. Bf6+ {[%clk 0:00:59]}  Kf8 {[%clk 0:00:09]} 44. Ne5 {[%clk 0:00:59]}  Be8 {[%clk 0:00:06]} 45. g6 {[%clk 0:00:57]}  Bh6 {[%clk 0:00:04]} 46. Kg4 {[%clk 0:00:55]}  c5 {[%clk 0:00:02]} 47. Kh5 {[%clk 0:00:55]}  Bg7 {[%clk 0:00:03]} 48. Bxg7+ {[%clk 0:00:55]}  Kxg7 {[%clk 0:00:04]} 49. Kg5 {[%clk 0:00:56]}  a3 {[%clk 0:00:03]} 50. Bd3 {[%clk 0:00:54]}  Ba4 {[%clk 0:00:01]} 51. Nf3 {[%clk 0:00:51]}  Bb3 {[%clk 0:00:02]} 52. Bb1 {[%clk 0:00:50]}  Bd5 {[%clk 0:00:02]} 53. Nh4 {[%clk 0:00:50]}  c4 {[%clk 0:00:02]} 54. Nf5+ {[%clk 0:00:50]}  Kf8 {[%clk 0:00:03]} 55. Kf6 {[%clk 0:00:49]}  c3 {[%clk 0:00:02]} 56. g7+ {[%clk 0:00:50]}  Ke8 {[%clk 0:00:03]} 57. Ne3 {[%clk 0:00:44]}  Bg8 {[%clk 0:00:02]} 58. Bg6+ {[%clk 0:00:43]}  Kd7 {[%clk 0:00:02]} 59. Bf7 {[%clk 0:00:43]}  Bh7 {[%clk 0:00:02]} 60. g8=Q {[%clk 0:00:43]}  Bxg8 {[%clk 0:00:02]} 61. Bxg8 {[%clk 0:00:44]}  Kd6 {[%clk 0:00:02]} 62. Nc2 {[%clk 0:00:44]}  Kc5 {[%clk 0:00:02]} 63. Ke5 {[%clk 0:00:44]}  Kb5 {[%clk 0:00:02]} 64. Kd4 {[%clk 0:00:45]}  Ka4 {[%clk 0:00:03]} 65. Kxc3 {[%clk 0:00:46]}  Ka5 {[%clk 0:00:04]} 66. Nxa3 {[%clk 0:00:45]}  Ka4 {[%clk 0:00:03]} 67. Nc2 {[%clk 0:00:45]}  Ka5 {[%clk 0:00:03]} 68. Bb3 {[%clk 0:00:46]}  Kb5 {[%clk 0:00:04]} 69. a4+ {[%clk 0:00:47]}  Ka5 {[%clk 0:00:05]} 70. Kc4 {[%clk 0:00:48]}  Ka6 {[%clk 0:00:06]} 71. Kb4 {[%clk 0:00:48]}  Kb6 {[%clk 0:00:06]} 72. Nd4 {[%clk 0:00:49]}  Ka6 {[%clk 0:00:07]} 73. a5 {[%clk 0:00:48]}  Ka7 {[%clk 0:00:08]} 74. Kb5 {[%clk 0:00:49]}  Kb7 {[%clk 0:00:09]} 75. a6+ {[%clk 0:00:48]}  Ka7 {[%clk 0:00:10]} 76. Bd5 {[%clk 0:00:48]}  Kb8 {[%clk 0:00:10]} 77. Kb6 {[%clk 0:00:45]}  Kc8 {[%clk 0:00:10]} 78. a7 {[%clk 0:00:46]}  Kd7 {[%clk 0:00:11]} 79. a8=Q {[%clk 0:00:46]}  Kd6 {[%clk 0:00:12]} 80. Qd8+ {[%clk 0:00:46]}  Ke5 {[%clk 0:00:13]} 81. Nc6+ {[%clk 0:00:46]}  Kf4 {[%clk 0:00:13]} 82. Qf6+ {[%clk 0:00:46]}  Ke3 {[%clk 0:00:14]} 83. Qf3+ {[%clk 0:00:46]}  Kd2 {[%clk 0:00:15]} 84. Nd4 {[%clk 0:00:45]}  Ke1 {[%clk 0:00:16]} 85. Qe2# {[%clk 0:00:45]} 1-0


[Site "https://www.chess.com"]